bitfinex-derivatives/quotes_ETHF0:USTF0_20220108
["timestamp","ask_amount","ask_price","bid_price","bid_amount"]
[1641670022605,1.65780295,3015.5,3013.8,1.65780295]
[1641670022802,0.08291,3015.7,3013.3,15.51]
[1641670023003,2.00479,3015.1,3014.4,2.00479]
[1641670023204,2.00479,3015.1,3014.5,0.002001]
[1641670023403,1.302757,3015.0,3014.4,2.00479]
[1641670023809,2.00479,3015.1,3014.4,2.00479]
[1641670024006,1.65753915,3016.0,3014.4,2.00479]
[1641670024306,0.0829,3016.8,3014.4,2.00479]
[1641670024606,0.0829,3017.9,3014.9,1.5]
[1641670024807,0.08287,3018.0,3015.0,14.09287]
[1641670025108,2.00479,3017.5,3016.8,2.00479]
[1641670025306,1.302757,3017.4,3016.8,2.00479]
[1641670025506,2.00479,3017.5,3016.9,0.002001]
[1641670025706,0.08284,3018.5,3016.9,14.012001]
[1641670025906,1.5,3019.1,3016.9,0.002001]
[1641670026106,0.08283,3019.0,3016.9,0.002001]
[1641670026605,0.08283,3019.3,3016.9,0.002001]
[1641670026808,0.08283,3019.5,3017.0,0.08283]
[1641670027106,2.00479,3019.6,3018.8,2.00479]
[1641670027306,1.65581556,3019.1,3018.8,2.75749]
[1641670027706,0.66197,3019.2,3018.8,2.75749]
[1641670027906,0.640787,3019.5,3018.8,2.759491]
[1641670028204,0.66197,3019.4,3018.8,2.75749]
[1641670028605,0.66197,3019.4,3018.5,2.00479]
[1641670028809,1.65573605,3019.3,3018.5,2.00479]
[1641670029008,0.640787,3019.5,3018.5,2.00479]
[1641670029009,2.00479,3019.1,3018.5,2.00479]
[1641670029206,0.640787,3019.5,3018.5,2.00479]
[1641670029207,1.5,3019.4,3018.5,2.00479]
[1641670029406,1.65573605,3019.3,3018.5,2.00479]
[1641670029607,0.66197,3019.2,3017.4,0.0828]
[1641670029907,0.08282,3019.1,3016.1,0.08282]
[1641670030106,0.08283,3019.3,3016.5,1.5]
[1641670030308,0.723617,3019.5,3016.6,14.09283]
[1641670030906,2.00479,3018.6,3017.8,2.00479]
[1641670031110,1.302757,3018.5,3017.8,2.00479]
[1641670031710,0.08283,3019.3,3018.2,14.01]
[1641670031910,0.99304788,3021.1,3018.2,14.01]
[1641670032110,0.08279,3021.0,3017.9,0.084801]
[1641670032511,0.08279,3021.0,3018.1,1.5]
[1641670032713,0.08279,3021.0,3018.2,0.08279]
[1641670032913,2.00479,3020.4,3019.7,2.00479]
[1641670033113,0.66197,3020.3,3019.7,2.00479]
[1641670033312,0.08278,3020.2,3019.7,9e-05]
[1641670033511,0.66197,3020.1,3019.7,9e-05]
[1641670034116,1.5,3019.8,3017.2,0.08278]
[1641670034314,1.5,3019.2,3016.6,0.08282]
[1641670034514,0.08283,3019.1,3016.1,0.08283]
[1641670034914,2.00479,3017.6,3016.9,2.00479]
[1641670035117,2.00479,3017.6,3017.0,1.302757]
[1641670035315,2.00479,3017.6,3017.0,15.312757]
[1641670035515,2.00479,3017.9,3017.0,16.96879741]
[1641670035716,2.00479,3017.9,3017.0,15.395597]
[1641670036117,2.00479,3017.9,3017.0,1.385597]
[1641670036318,2.00479,3017.9,3017.2,1.6559362]
[1641670036516,0.95639,3017.9,3017.4,1.65582378]
[1641670036720,0.95639,3017.9,3017.5,0.08283]
[1641670036917,0.95639,3017.9,3017.6,0.66197]
[1641670037118,0.95639,3017.9,3017.7,0.640787]
[1641670037523,2.00479,3018.5,3017.8,0.66197]
[1641670037722,1.65582378,3019.1,3017.8,0.7448]
[1641670037920,0.6846,3019.3,3017.8,0.66197]
[1641670038219,1.6557196,3019.3,3017.8,0.66197]
[1641670038422,1.6557196,3019.3,3017.8,14.67197]
[1641670038825,1.65533315,3020.0,3018.3,1.65533315]
[1641670039021,2.00479,3019.6,3018.8,2.00479]
[1641670039223,2.00479,3019.6,3018.9,1.302757]
[1641670040023,0.638787,3019.5,3018.9,1.302757]
[1641670040623,2.00479,3019.6,3018.9,1.302757]
[1641670040823,2.00479,3019.9,3019.0,0.0828]
[1641670041025,2.00479,3019.9,3019.4,2.00479]
[1641670041224,2.00479,3020.4,3019.5,0.66197]
[1641670041425,1.6548346,3020.9,3019.5,14.67197]
[1641670042426,1.73737912,3021.4,3019.7,1.65459912]
[1641670042627,0.6846,3021.2,3019.7,1.65459912]
[1641670043028,2.00479,3021.0,3020.3,2.00479]
[1641670043228,0.638787,3020.9,3020.3,2.00479]
[1641670043427,0.638787,3020.9,3020.4,0.640787]
[1641670043727,2.00479,3021.0,3020.4,0.640787]
[1641670043926,2.00479,3021.0,3020.5,0.66197]
[1641670044939,2.00479,3021.0,3020.3,2.00479]
[1641670045135,0.638787,3020.9,3020.4,2.31618046]
[1641670045335,0.08276,3021.7,3020.8,3.15382472]
[1641670045536,1.65400799,3022.4,3020.9,14.01]
[1641670045736,1.65415573,3022.5,3020.9,14.01]
[1641670045935,1.65436098,3021.8,3020.6,0.08273]
[1641670046235,1.65455806,3021.4,3020.6,0.08273]
[1641670046436,0.08275,3022.5,3020.7,0.66197]
[1641670046635,1.6543993,3021.7,3020.7,0.66197]
[1641670047035,2.00479,3021.4,3020.7,2.66676]
[1641670047235,2.00479,3021.4,3020.7,16.67676]
[1641670047435,2.00479,3021.7,3020.7,16.67676]
[1641670047636,2.00479,3021.7,3020.8,0.08273]
[1641670047835,0.08273,3023.1,3020.8,0.08273]
[1641670048036,1.5,3022.4,3020.8,0.08273]
[1641670048235,0.08273,3023.0,3020.7,2.00479]
[1641670048436,1.65415574,3022.2,3020.7,16.01479]
[1641670048637,0.08273,3023.1,3020.8,0.08273]
[1641670049038,2.00479,3022.1,3021.3,2.00479]
[1641670049238,0.638787,3022.0,3021.4,1.302757]
[1641670049938,0.638787,3022.0,3020.7,2.00479]
[1641670050137,0.08273,3021.9,3019.6,0.08273]
[1641670050338,1.07548796,3021.9,3019.6,0.08273]
[1641670050539,1.5,3021.5,3019.6,0.08273]
[1641670050739,1.07548796,3021.9,3019.5,14.01]
[1641670050939,2.00479,3020.6,3019.9,2.00479]
[1641670051143,2.00479,3020.9,3020.1,14.01]
[1641670051341,1.6544951,3021.6,3020.0,0.640787]
[1641670052042,1.65481543,3021.0,3020.0,0.640787]
[1641670052241,1.65491128,3020.8,3019.9,2.00479]
[1641670052440,0.08276,3020.7,3019.1,0.08276]
[1641670052641,0.08276,3020.7,3018.4,1.20502452]
[1641670052843,14.09279,3020.9,3018.4,1.12226452]
[1641670053040,14.09279,3020.9,3019.1,2.00479]
[1641670053041,2.00479,3019.8,3019.1,2.00479]
[1641670053242,1.65577443,3019.2,3018.4,1.12226452]
[1641670053442,1.65608429,3018.7,3018.4,1.12226452]
[1641670053945,1.65608429,3018.7,3017.0,4.91249711]
[1641670054143,1.65608429,3018.7,3017.0,1.12226452]
[1641670054545,1.65608429,3018.7,3017.0,15.13226452]
[1641670054946,1.65571686,3019.6,3018.6,2.00479]
[1641670055348,2.00479,3020.1,3018.7,14.01]
[1641670055546,2.00479,3020.1,3018.7,15.66514411]
[1641670055747,2.00479,3020.1,3018.7,14.01]
[1641670055947,2.00479,3020.1,3018.6,2.00479]
[1641670056348,1.65565107,3019.4,3018.6,2.00479]
[1641670056545,0.638787,3019.3,3018.6,2.00479]
[1641670057149,0.638787,3019.3,3018.7,0.640787]
[1641670057745,0.638787,3019.3,3018.6,2.00479]
[1641670057948,0.638787,3019.3,3018.7,0.66197]
[1641670058347,0.638787,3019.3,3018.6,2.00479]
[1641670060450,1.6559362,3018.9,3018.3,2.00479]
[1641670060651,0.638787,3019.3,3018.3,2.00479]
[1641670061054,2.00479,3018.7,3018.3,2.00479]
[1641670061253,0.638787,3018.6,3018.3,2.00479]
[1641670061453,2.138787,3018.6,3017.7,2.00479]
[1641670061653,1.65659183,3017.8,3017.7,2.00479]
[1641670061853,0.08283,3018.5,3017.7,2.00479]
[1641670062054,1.65659183,3017.8,3017.7,2.00479]
[1641670062954,1.65659183,3017.8,3016.7,1.12226452]
[1641670063153,1.65709968,3016.8,3015.6,0.08284]
[1641670063353,1.65709968,3017.1,3015.6,0.08284]
[1641670063554,1.6570832,3016.8,3015.4,1.12226452]
[1641670063756,1.6570832,3016.8,3015.4,15.13226452]
[1641670064354,3.17132326,3017.4,3015.4,15.13226452]
[1641670064554,1.65688826,3017.2,3015.6,14.01]
[1641670064754,1.65688826,3017.2,3015.6,0.08287]
[1641670065153,2.00479,3016.6,3015.9,2.00479]
[1641670065354,0.638787,3016.5,3016.0,1.302757]
[1641670065754,0.638787,3016.5,3016.0,0.66197]
[1641670066354,2.00479,3016.6,3016.0,0.66197]
[1641670066554,2.00479,3016.6,3015.9,2.00479]
[1641670066755,2.00479,3016.6,3016.0,0.66197]
[1641670067356,2.00479,3016.6,3016.1,0.640787]
[1641670068156,2.00479,3016.6,3016.0,0.66197]
[1641670068157,2.643577,3016.6,3016.0,0.66197]
[1641670068556,2.643577,3016.6,3015.9,2.00479]
[1641670068956,2.643577,3016.6,3015.6,2.00479]
[1641670069157,4.648367,3016.6,3015.6,2.00479]
[1641670070164,1.65731389,3016.4,3015.6,2.00479]
[1641670070360,1.65731389,3016.4,3015.7,1.302757]
[1641670071260,0.638787,3016.6,3016.0,2.00479]
[1641670071864,0.638787,3016.6,3016.0,2.66676]
[1641670072063,2.29602124,3016.6,3016.0,2.66676]
[1641670072264,2.00479,3016.7,3016.0,2.66676]
[1641670072464,1.65663848,3017.6,3016.1,14.01]
[1641670072765,0.08286,3018.2,3016.1,14.01]
[1641670072963,1.5,3018.6,3016.2,0.08284]
[1641670073163,2.00479,3018.0,3017.3,2.00479]
[1641670073365,0.638787,3017.9,3017.3,2.00479]
[1641670073565,1.65678121,3017.4,3016.1,0.08284]
[1641670073764,1.65700357,3017.0,3015.5,0.08287]
[1641670073965,0.08287,3017.2,3014.8,0.08287]
[1641670074267,1.58289,3017.3,3014.8,14.09287]
[1641670074865,1.5,3016.2,3014.8,0.08287]
[1641670075164,2.00479,3015.3,3014.6,3.12705452]
[1641670075367,0.638787,3015.2,3014.6,3.12705452]
[1641670075764,0.638787,3015.2,3014.6,1.12226452]
[1641670076565,0.638787,3015.2,3014.3,2.00479]
[1641670077166,2.00479,3014.7,3014.3,2.00479]
[1641670077970,2.00479,3014.7,3013.7,2.00479]
[1641670078167,1.65857283,3014.1,3013.7,2.00479]
[1641670078366,0.638787,3014.0,3013.7,2.00479]
[1641670078767,4.14399,3014.7,3013.7,2.645577]
[1641670078966,1.65839954,3014.4,3013.7,2.645577]
[1641670079168,2.00479,3014.3,3013.8,0.66197]
[1641670079466,2.00479,3014.7,3013.8,0.66197]
[1641670081166,2.00479,3014.7,3014.3,2.00479]
[1641670081367,2.00479,3014.7,3014.3,3.307547]
[1641670082369,0.08293,3016.0,3014.7,14.24]
[1641670082570,0.99437297,3017.0,3014.9,1.5]
[1641670082769,0.99437297,3017.0,3015.0,14.24]
[1641670082968,0.99437297,3017.0,3014.5,14.3229]
[1641670083172,2.00479,3016.6,3015.8,2.00479]
[1641670083470,0.638787,3016.5,3015.8,2.00479]
[1641670085774,1.5,3016.0,3014.0,0.08287]
[1641670086171,1.65794862,3015.3,3013.6,2.77119022]
[1641670087173,3.66273862,3015.3,3014.6,2.00479]
[1641670087372,2.138787,3015.2,3013.4,14.32293]
[1641670087571,2.138787,3015.2,3013.0,0.08293]
[1641670087771,0.08294,3015.1,3012.9,1.1132416]
[1641670088173,14.32294,3015.1,3012.9,1.1132416]
[1641670088573,0.9950557,3015.0,3012.9,1.1132416]
[1641670088774,0.9950557,3015.0,3012.6,1.1961816]
[1641670088973,1.7317557,3015.0,3012.7,14.24]
[1641670089174,2.00479,3014.6,3013.9,2.00479]
[1641670089376,2.00479,3014.6,3014.0,1.302757]
[1641670089577,3.66273312,3015.3,3014.0,1.302757]
[1641670089976,2.00479,3015.3,3014.0,1.302757]
[1641670090179,0.08291,3016.0,3014.8,14.24]
[1641670090378,1.65755839,3016.3,3014.9,0.0829]
[1641670090579,37.24072508,3017.1,3014.9,0.0829]
[1641670090779,1.41902508,3017.1,3014.9,0.0829]
[1641670091180,2.00479,3016.6,3015.8,2.00479]
[1641670091379,0.638787,3016.5,3015.8,2.00479]
[1641670091981,1.5,3016.2,3015.5,2.00479]
[1641670092179,0.08289,3016.1,3014.6,5.414]
[1641670092379,1.54274381,3015.9,3014.6,5.414]
[1641670092579,2.21021434,3015.9,3014.6,5.414]
[1641670092780,1.5,3015.4,3012.8,5.414]
[1641670092980,1.5,3015.3,3012.9,0.08294]
[1641670093180,2.00479,3015.3,3014.6,2.00479]
[1641670093381,16.24479,3015.3,3014.6,2.00479]
[1641670093582,0.638787,3015.2,3014.6,2.00479]
[1641670095582,2.00479,3015.3,3014.7,0.66197]
[1641670095983,2.00479,3015.6,3014.7,0.66197]
[1641670097482,2.00479,3016.2,3015.2,2.00479]
[1641670097685,0.99440843,3016.9,3015.2,16.24479]
[1641670097884,0.99440843,3016.9,3015.4,14.24]
[1641670098084,1.65687454,3017.2,3015.9,14.24]
[1641670098285,1.65687454,3017.2,3015.6,0.08287]
[1641670098884,1.65687454,3017.2,3015.6,14.32287]
[1641670099089,1.65687454,3017.2,3015.6,15.82287]
[1641670099286,0.08287,3018.0,3017.1,2.00479]
[1641670099586,3.66114585,3018.2,3017.1,2.00479]
[1641670100986,14.24,3018.1,3017.1,2.00479]
[1641670101196,1.65677023,3017.4,3016.9,2.00479]
[1641670101389,0.638787,3017.3,3016.9,2.00479]
[1641670101586,1.598387,3017.3,3016.9,2.00479]
[1641670102287,1.6569267,3017.1,3016.9,2.00479]
[1641670103690,0.08286,3018.6,3016.9,2.00479]
[1641670103887,0.08283,3018.9,3016.9,18.39019]
[1641670104089,1.6561748,3018.5,3016.9,18.39019]
[1641670104988,1.6559883,3018.8,3017.2,14.24]
[1641670105188,1.6559883,3018.8,3017.1,3.1559883]
[1641670105189,102.7096,3019.4,3017.5,1.5]
[1641670105388,2.00479,3019.1,3018.4,2.00479]
[1641670105589,0.638787,3019.0,3018.4,2.00479]
[1641670105790,0.638787,3019.0,3018.4,2.66676]
[1641670106295,0.638787,3019.0,3018.4,3.307547]
[1641670106491,2.00479,3019.4,3018.4,3.307547]
[1641670106892,2.00479,3019.4,3018.4,2.66676]
[1641670107093,17.74479,3019.4,3018.4,2.00479]
[1641670107294,2.00479,3018.8,3018.0,2.00479]
[1641670107494,1.7154207,3018.7,3018.0,2.00479]
[1641670108096,1.6563147,3018.2,3017.7,2.00479]
[1641670108395,15.9554207,3018.7,3017.7,2.00479]
[1641670108801,1.7154207,3018.7,3017.7,2.00479]
[1641670109399,2.00479,3018.3,3017.7,2.00479]
[1641670110101,3.66109098,3018.3,3017.7,2.00479]
[1641670110302,2.62689,3018.3,3017.7,2.00479]
[1641670111101,4.28319098,3018.3,3017.7,2.00479]
[1641670111703,2.62689,3018.3,3017.7,2.00479]
[1641670112203,0.9940053,3018.1,3014.8,3.97877999]
[1641670112403,14.32286,3018.0,3015.7,1.391552]
[1641670112605,1.65695964,3017.1,3015.7,1.391552]
[1641670113103,1.65727269,3016.5,3016.0,1.1132416]
[1641670113303,2.00479,3016.3,3016.0,1.1132416]
[1641670114307,2.00479,3016.6,3016.0,1.1132416]
[1641670114504,2.00479,3016.6,3016.1,0.66197]
[1641670114704,14.32287,3018.0,3016.1,0.66197]
[1641670114905,14.24,3018.0,3016.1,0.66197]
[1641670115106,1.65671807,3017.5,3016.1,0.66197]
[1641670115305,1.65671807,3017.5,3016.9,2.00479]
[1641670115506,2.29550507,3017.5,3016.9,2.00479]
[1641670117710,0.638787,3017.5,3017.0,0.66197]
[1641670117910,0.08284,3018.0,3017.0,1.302757]
[1641670118110,0.08284,3019.1,3017.0,1.302757]
[1641670118511,0.81423016,3018.8,3017.0,1.302757]
[1641670118910,0.81423016,3018.8,3017.1,14.24]
[1641670119513,0.81423016,3018.8,3018.2,2.00479]
[1641670119713,0.81423016,3018.8,3018.2,2.66676]
[1641670119913,0.81423016,3018.8,3018.3,0.640787]
[1641670120314,2.00479,3019.2,3018.4,0.66197]
[1641670121514,2.00479,3019.2,3018.6,2.00479]
[1641670121716,0.638787,3019.1,3018.6,2.00479]
[1641670122217,0.638787,3019.1,3018.7,0.66197]
[1641670123217,2.00479,3019.2,3018.7,0.66197]
[1641670123818,0.638787,3019.1,3018.7,0.66197]
[1641670124019,2.00479,3019.2,3018.7,0.66197]
[1641670124221,2.55231947,3020.1,3019.0,1.5]
[1641670124419,0.81423016,3020.1,3019.4,1.65472233]
[1641670124621,0.81423016,3020.4,3019.5,1.302757]
[1641670125421,0.81223016,3020.4,3020.3,2.00479]
[1641670125621,3.63325033,3021.1,3020.3,2.66676]
[1641670126223,0.638787,3021.0,3020.3,2.66676]
[1641670126622,0.638787,3021.0,3020.1,2.00479]
[1641670126824,0.721547,3021.0,3018.4,0.08276]
[1641670127023,0.08278,3020.9,3019.0,1.5]
[1641670127222,0.638787,3021.0,3019.4,14.24]
[1641670127423,0.638787,3021.0,3020.3,2.00479]
[1641670127623,0.638787,3021.0,3020.4,0.66197]
[1641670127823,2.00479,3021.1,3020.5,0.640787]
[1641670128022,2.00479,3021.4,3020.6,0.66197]
[1641670128222,0.08275,3022.6,3020.6,14.90197]
[1641670128423,39.4821,3022.8,3020.6,14.90197]
[1641670128624,1.65398884,3022.5,3020.9,14.24]
[1641670128823,1.65413385,3022.2,3020.6,0.08273]
[1641670129023,1.71119033,3022.9,3020.6,0.08273]
[1641670129224,1.5,3022.8,3020.6,0.08273]
[1641670129428,2.00479,3022.2,3021.4,2.00479]
[1641670129630,2.00479,3022.5,3021.5,0.66197]
[1641670129926,1.62846033,3022.9,3021.5,0.74469]
[1641670130125,1.62846033,3022.9,3021.5,0.66197]
[1641670130325,1.65423509,3022.0,3021.1,2.00479]
[1641670130527,1.65423509,3022.0,3020.3,1.65423509]
[1641670130925,1.65423509,3022.0,3020.4,0.08273]
[1641670131128,1.5,3021.7,3019.8,0.08273]
[1641670131326,0.08276,3021.6,3019.3,68.3451]
[1641670131527,2.00479,3020.4,3019.7,2.00479]
[1641670131726,2.00479,3020.4,3019.8,1.302757]
[1641670133526,2.00479,3020.7,3019.8,1.302757]
[1641670135229,1.65461829,3021.3,3019.8,1.302757]
[1641670135433,2.00479,3021.1,3020.4,2.00479]
[1641670135629,2.00479,3021.1,3020.5,1.302757]
[1641670136032,1.65425151,3022.0,3020.5,1.302757]
[1641670136229,1.65425151,3022.0,3020.5,1.385487]
[1641670137231,1.65401073,3022.4,3020.7,1.65401073]
[1641670137434,1.65381651,3022.8,3022.3,2.00479]
[1641670137730,0.638787,3022.7,3022.1,2.00479]
[1641670138732,0.638787,3022.7,3022.2,1.302757]
[1641670138935,1.65390678,3022.6,3022.2,1.302757]
[1641670139332,0.638787,3022.7,3022.2,1.302757]
[1641670139634,2.00479,3023.1,3022.2,1.302757]
[1641670141134,0.08269,3024.4,3022.2,1.302757]
[1641670141337,7.06689529,3024.5,3022.9,14.24]
[1641670141534,7.06689529,3024.5,3023.7,2.00479]
[1641670141535,9.07168529,3024.5,3023.7,2.00479]
[1641670141833,1.65299639,3024.3,3023.7,2.00479]
[1641670142537,2.00479,3024.8,3023.8,1.302757]
[1641670143235,0.99147465,3025.8,3023.8,1.302757]
[1641670143435,1.65261121,3025.0,3024.5,2.00479]
[1641670143636,1.65288983,3024.6,3023.4,0.08262]
[1641670143835,1.65345829,3023.5,3022.7,0.08266]
[1641670144036,0.08269,3024.5,3022.8,0.66197]
[1641670144235,5.414,3024.6,3021.9,34.9894]
[1641670144435,5.414,3024.6,3022.0,14.32269]
[1641670144635,1.65309749,3024.1,3022.8,14.24]
[1641670144840,0.08268,3024.9,3022.5,0.08268]
[1641670145136,14.32268,3025.1,3022.0,0.08268]
[1641670145435,3.65839594,3023.2,3022.5,2.00479]
[1641670145636,2.00479,3023.2,3022.2,2.00479]
[1641670145834,0.08269,3023.1,3022.2,2.00479]
[1641670146036,2.00479,3023.2,3022.2,2.00479]
[1641670146437,1.52179,3023.2,3022.2,2.00479]
[1641670146636,2.00479,3023.5,3022.2,2.00479]
[1641670147045,0.08269,3024.7,3022.2,2.00479]
[1641670147438,2.00479,3024.2,3023.5,2.00479]
[1641670147635,0.638787,3024.1,3023.5,2.00479]
[1641670148041,0.638787,3024.1,3023.5,2.645577]
[1641670148238,0.638787,3024.1,3023.5,2.00479]
[1641670148539,1.65322047,3023.9,3023.5,2.00479]
[1641670148838,1.65322047,3023.9,3023.5,2.66676]
[1641670149038,0.638787,3024.1,3023.5,2.66676]
[1641670150041,0.638787,3024.1,3023.5,3.307547]
[1641670151140,69.43831262,3025.4,3023.5,17.547547]
[1641670151441,2.00479,3025.3,3024.6,2.00479]
[1641670151639,0.638787,3025.0,3024.6,2.00479]
[1641670152042,1.65267403,3024.9,3024.6,2.00479]
[1641670152840,2.00479,3025.3,3024.6,2.00479]
[1641670153042,14.24,3025.2,3024.6,2.00479]
[1641670153241,1.65257844,3025.1,3024.6,2.00479]
[1641670153443,2.00479,3025.3,3024.6,2.00479]
[1641670153644,1.65257844,3025.1,3024.6,2.00479]
[1641670154342,0.638787,3025.2,3024.6,2.00479]
[1641670156045,0.638787,3025.2,3023.2,0.08264]
[1641670156046,1.5,3024.8,3023.2,0.08264]
[1641670156245,14.24,3024.8,3022.4,0.08265]
[1641670156445,1.65342822,3023.5,3021.9,0.08268]
[1641670157045,15.74,3023.7,3021.1,0.08269]
[1641670157245,0.9205,3023.5,3021.1,14.32269]
[1641670157644,2.00479,3023.4,3022.7,2.00479]
[1641670157849,2.643577,3023.4,3022.7,2.00479]
[1641670158046,1.4821957,3023.3,3022.7,2.00479]
[1641670158647,1.5,3023.0,3021.1,0.08269]
[1641670158848,1.5,3023.0,3020.6,0.4957]
[1641670158849,0.9924096,3023.0,3020.6,0.4957]
[1641670159148,1.65389583,3022.7,3020.9,1.65389583]
[1641670159347,2.49419583,3022.7,3020.9,1.65389583]
[1641670159548,3.65915098,3021.8,3021.1,2.00479]
[1641670159749,2.138787,3021.7,3020.1,0.57123]
[1641670159948,2.138787,3021.7,3020.1,0.08273]
[1641670160147,0.004,3020.1,3019.3,1.7526124]
[1641670160351,0.004,3020.1,3019.8,1.302757]
[1641670160549,0.004,3020.1,3019.9,14.24]
[1641670160747,1.65458544,3021.4,3019.9,15.82278]
[1641670160950,1.65458544,3021.4,3020.1,14.24]
[1641670161148,2.00479,3021.8,3020.2,0.08276]
[1641670161548,2.00479,3021.4,3020.7,2.00479]
[1641670161750,2.00479,3021.4,3020.8,0.66197]
[1641670162351,2.00479,3021.4,3020.9,0.640787]
[1641670162554,2.00479,3021.4,3021.0,0.66197]
[1641670163650,0.8403,3022.7,3021.0,0.66197]
[1641670163651,2.00479,3022.5,3021.3,2.00479]
[1641670163852,2.00479,3022.5,3021.3,16.24479]
[1641670164451,2.00479,3022.5,3021.3,17.74479]
[1641670164652,7.06746376,3023.4,3022.1,1.65328607]
[1641670164853,102.24889,3024.6,3021.9,0.08269]
[1641670165055,1.65323414,3023.9,3022.2,14.24]
[1641670165253,1.65323414,3023.9,3022.1,1.65324781]
[1641670165652,2.00479,3024.0,3023.2,2.00479]
[1641670165853,0.638787,3023.9,3023.3,0.66197]
[1641670166656,0.638787,3023.9,3023.4,0.640787]
[1641670166854,0.638787,3023.9,3023.3,0.66197]
[1641670168256,2.00479,3024.0,3023.3,0.66197]
[1641670168455,2.00479,3024.3,3023.3,0.66197]
[1641670169258,1.65312482,3024.1,3023.2,2.00479]
[1641670169458,2.00479,3024.3,3022.9,2.00479]
[1641670169661,2.00479,3023.5,3022.9,2.00479]
[1641670169859,2.00479,3023.5,3023.0,1.302757]
[1641670170662,2.00479,3024.3,3023.0,1.302757]
[1641670171263,3.65779185,3024.3,3023.0,1.302757]
[1641670171461,4.35219185,3024.3,3023.0,1.302757]
[1641670171661,2.00479,3024.3,3023.7,2.00479]
[1641670171862,0.638787,3024.2,3023.0,1.302757]
[1641670172362,1.65317948,3024.0,3023.0,1.302757]
[1641670173168,0.638787,3024.2,3023.0,1.302757]
[1641670173365,0.99215655,3023.8,3022.9,2.00479]
[1641670173565,2.00479,3023.5,3022.9,2.00479]
[1641670173865,0.638787,3023.4,3022.4,2.00479]
[1641670174066,1.5,3023.1,3022.4,2.00479]
[1641670174364,0.99244255,3022.9,3021.2,34.2214416]
[1641670174566,1.65395601,3022.5,3021.2,1.1132416]
[1641670174766,1.65395601,3022.5,3020.8,1.65395601]
[1641670174767,1.65414205,3022.2,3021.0,1.1132416]
[1641670174964,1.65424056,3022.0,3021.0,1.1132416]
[1641670175565,2.00479,3021.8,3021.0,3.1180316]
[1641670175767,0.638787,3021.7,3021.0,3.1180316]
[1641670175967,2.29323009,3021.7,3021.0,3.1180316]
[1641670176365,3.12363009,3021.7,3021.0,3.1180316]
[1641670176767,3.12363009,3021.7,3021.0,2.00479]
[1641670176968,3.12363009,3021.7,3020.7,2.00479]
[1641670177367,2.48484309,3021.7,3020.7,2.00479]
[1641670177567,2.00479,3021.4,3020.7,2.00479]
[1641670177770,1.65444309,3021.7,3020.8,1.302757]
[1641670177970,5.49673,3022.9,3020.9,14.24]
[1641670178169,5.414,3022.9,3020.8,0.723507]
[1641670178371,1.65395601,3022.5,3020.9,15.74]
[1641670178570,1.65384386,3022.7,3021.3,14.24]
[1641670178770,0.8003,3023.1,3021.4,0.08272]
[1641670179373,1.65375361,3022.9,3021.4,0.08272]
[1641670179572,2.00479,3022.8,3022.0,2.00479]
[1641670179771,0.638787,3022.7,3022.0,2.00479]
[1641670180072,0.638787,3022.7,3022.1,0.66197]
[1641670180272,0.638787,3022.7,3022.1,1.302757]
[1641670180471,0.8003,3023.1,3022.1,1.302757]
[1641670180671,0.8003,3023.1,3022.5,1.65305377]
[1641670180877,0.8003,3023.1,3022.6,0.66197]
[1641670181674,0.8003,3023.1,3022.9,2.00479]
[1641670182277,0.8003,3023.1,3023.0,0.640787]
[1641670182478,0.8003,3023.1,3023.0,1.302757]
[1641670183078,2.00479,3024.0,3023.0,15.542757]
[1641670183480,1.65283246,3024.6,3023.0,15.542757]
[1641670183677,2.00479,3024.5,3023.7,2.00479]
[1641670183882,0.638787,3024.4,3023.7,2.00479]
[1641670185278,0.638787,3024.4,3023.8,1.302757]
[1641670185681,0.638787,3024.4,3023.7,2.00479]
[1641670186081,1.65329154,3023.8,3022.9,2.00479]
[1641670186480,1.65329154,3023.8,3022.0,1.73597154]
[1641670186682,1.65360594,3023.2,3022.0,0.08268]
[1641670186883,1.65392319,3022.6,3022.3,1.1132416]
[1641670187081,0.638787,3022.5,3022.3,1.1132416]
[1641670188284,0.638787,3022.5,3022.1,0.891]
[1641670189585,2.00479,3022.7,3022.1,1.531787]
[1641670189786,2.00479,3022.7,3022.2,0.66197]
[1641670190389,0.638787,3022.6,3022.2,0.66197]
[1641670190786,0.638787,3022.6,3021.4,0.08271]
[1641670190990,1.5,3022.3,3021.4,1.1132416]
[1641670191188,1.6543993,3021.7,3021.4,1.1132416]
[1641670191687,3.65944662,3021.5,3021.4,1.1132416]
[1641670191888,2.00479,3021.5,3021.4,1.1132416]
[1641670192286,3.50479,3021.5,3020.7,2.087328]
[1641670192486,1.65494141,3020.8,3020.7,2.087328]
[1641670192686,1.65494141,3020.8,3020.6,1.09217927]
[1641670193287,1.65494141,3020.8,3020.3,1.36522409]
[1641670193488,0.08276,3020.7,3020.3,1.36522409]
[1641670193691,2.00479,3020.4,3020.3,1.36522409]
[1641670194492,0.638787,3020.5,3020.1,0.66197]
[1641670194693,0.638787,3020.5,3019.7,2.78310399]
[1641670194893,0.638787,3020.5,3019.6,2.00479]
[1641670195493,1.65535781,3020.0,3019.6,2.00479]
[1641670195693,1.65537152,3020.0,3019.3,2.00479]
[1641670195893,1.65537152,3020.0,3019.1,2.087328]
[1641670196095,1.65537152,3020.0,3019.7,0.52851807]
[1641670196294,1.73815152,3020.0,3019.7,0.52851807]
[1641670196794,3.15557158,3019.8,3018.8,4.82038565]
[1641670196994,14.24,3019.3,3018.8,4.82038565]
[1641670197192,0.721587,3019.2,3018.8,2.79179017]
[1641670197593,0.721587,3019.2,3018.6,2.78310399]
[1641670197795,2.00479,3018.7,3018.2,0.70446217]